fUST/lending_fUST_20240728
["ID","MTS","AMOUNT","RATE_DAILY","PERIOD"]
[333406112,1722113443104,-679.01,0.00013698,2]
[333406115,1722113443113,-500.0,0.00013698,2]
[333406117,1722113443123,-500.0,0.00013698,2]
[333406120,1722113443132,-500.0,0.00013698,2]
[333406122,1722113443143,-701.34,0.00013698,2]
[333406125,1722113443162,-500.0,0.00013698,2]
[333406127,1722113443172,-1128.76,0.00013698,2]
[333406129,1722113443181,-500.0,0.00013698,2]
[333406131,1722113443191,-500.0,0.00013698,2]
[333406132,1722113443201,-500.0,0.00013698,2]
[333406134,1722113443210,-502.02012757,0.00013698,2]
[333406137,1722113443220,-1425.28,0.00013698,2]
[333406139,1722113443231,-888.23,0.00013698,2]
[333406141,1722113443245,-270.72779516,0.00013698,2]
[333406143,1722113443254,-803.82,0.00013698,2]
[333406145,1722113443264,-303.97866434,0.00013698,2]
[333406149,1722113443274,-500.0,0.00013698,2]
[333406152,1722113443283,-500.0,0.00013698,2]
[333406156,1722113443292,-500.0,0.00013698,2]
[333406160,1722113443301,-589.92665374,0.00013698,2]
[333406164,1722113443311,-500.0,0.00013698,2]
[333406168,1722113443322,-500.0,0.00013698,2]
[333406172,1722113443331,-500.0,0.00013698,2]
[333406176,1722113443340,-372.71713829,0.00013698,2]
[333406180,1722113443349,-500.0,0.00013698,2]
[333406183,1722113443358,-500.0,0.00013698,2]
[333406187,1722113443369,-500.0,0.00013698,2]
[333406190,1722113443378,-500.0,0.00013698,2]
[333406193,1722113443387,-500.0,0.00013698,2]
[333406197,1722113443397,-500.0,0.00013698,2]
[333406200,1722113443412,-500.0,0.00013698,2]
[333406202,1722113443421,-646.47,0.00013698,2]
[333406204,1722113443430,-500.0,0.00013698,2]
[333406206,1722113443440,-500.0,0.00013698,2]
[333406208,1722113443450,-150.112233,0.000137,2]
[333406211,1722113443460,-216.10425676,0.00013735,2]
[333406213,1722113443470,-216.10425676,0.00013872,2]
[333406215,1722113443480,-2779.13436246,0.00013872,2]
[333406217,1722113443490,-2000.0,0.00013872,2]
[333406219,1722113443500,-13638.7290696,0.00013952,2]
[333406221,1722113443510,-500.0,0.00013961,2]
[333406224,1722113443519,-13638.7290696,0.00013962,2]
[333406225,1722113443529,-500.0,0.00013971,2]
[333406227,1722113443539,-500.0,0.00013971,2]
[333406230,1722113443548,-500.0,0.00013972,2]
[333406233,1722113443558,-500.0,0.00013972,2]
[333406236,1722113443567,-505.28560833,0.00013972,2]
[333406239,1722113443577,-500.0,0.00013972,2]
[333406241,1722113443587,-500.0,0.00013972,2]
[333406243,1722113443598,-500.0,0.00013972,2]
[333406245,1722113443607,-500.0,0.00013972,2]
[333406247,1722113443618,-500.0,0.00013972,2]
[333406249,1722113443627,-500.0,0.00013972,2]
[333406252,1722113443638,-500.0,0.00013972,2]
[333406254,1722113443647,-500.0,0.00013972,2]
[333406256,1722113443660,-529.78928007,0.00013972,2]
[333406258,1722113443669,-500.0,0.00013972,2]
[333406260,1722113443680,-228.20082559,0.00013972,2]
[333406262,1722113443690,-500.0,0.00013972,2]
[333406264,1722113443700,-500.0,0.00013972,2]
[333406266,1722113443709,-372.93496638,0.00013972,2]
[333406268,1722113443719,-732.89,0.00013972,2]
[333406270,1722113443729,-500.0,0.00013972,2]
[333406272,1722113443738,-177.82674403,0.00013972,2]
[333406274,1722113443747,-500.0,0.00013972,2]
[333406276,1722113443756,-500.0,0.00013972,2]
[333406278,1722113443765,-509.18,0.00013972,2]
[333406280,1722113443776,-543.65,0.00013972,2]
[333406282,1722113443785,-579.8,0.00013972,2]
[333406287,1722113443822,-500.0,0.00013972,2]
[333406289,1722113443832,-500.0,0.00013972,2]
[333406291,1722113443841,-692.1,0.00013972,2]
[333406293,1722113443852,-586.29,0.00013972,2]
[333406295,1722113443863,-500.0,0.00013972,2]
[333406297,1722113443872,-510.18,0.00013972,2]
[333406299,1722113443881,-707.65,0.00013972,2]
[333406301,1722113443890,-500.0,0.00013972,2]
[333406303,1722113443901,-500.0,0.00013972,2]
[333406305,1722113443912,-707.86,0.00013972,2]
[333406307,1722113443922,-500.0,0.00013972,2]
[333406309,1722113443931,-151.0,0.00013972,2]
[333406311,1722113443941,-500.0,0.00013972,2]
[333406313,1722113443951,-151.0,0.00013972,2]
[333406315,1722113443962,-151.0,0.00013972,2]
[333406318,1722113443971,-500.0,0.00013972,2]
[333406320,1722113443981,-500.0,0.00013972,2]
[333406322,1722113443991,-273.03,0.00013972,2]
[333406324,1722113444000,-500.0,0.00013972,2]
[333406326,1722113444010,-1703.18,0.00013972,2]
[333406328,1722113444019,-500.0,0.00013972,2]
[333406329,1722113444028,-804.04,0.00013972,2]
[333406332,1722113444038,-879.02,0.00013972,2]
[333406334,1722113444048,-3002.66,0.00013972,2]
[333406336,1722113444057,-500.0,0.00013972,2]
[333406338,1722113444067,-500.0,0.00013972,2]
[333406339,1722113444076,-500.0,0.00013972,2]
[333406341,1722113444086,-1383.93,0.00013972,2]
[333406343,1722113444095,-794.51,0.00013972,2]
[333406345,1722113444105,-500.0,0.00013972,2]
[333406347,1722113444114,-765.18,0.00013972,2]
[333406349,1722113444123,-515.71,0.00013972,2]
[333406351,1722113444133,-500.0,0.00013972,2]
[333406353,1722113444142,-500.0,0.00013972,2]
[333406355,1722113444153,-733.89,0.00013972,2]
[333406357,1722113444163,-500.0,0.00013972,2]
[333406359,1722113444172,-5426.52,0.00013972,2]
[333406361,1722113444181,-500.0,0.00013972,2]
[333406363,1722113444190,-1510.48,0.00013972,2]
[333406365,1722113444200,-500.0,0.00013972,2]
[333406367,1722113444210,-2248.36,0.00013972,2]
[333406369,1722113444219,-539.9,0.00013972,2]
[333406371,1722113444229,-1239.18,0.00013972,2]
[333406373,1722113444238,-500.0,0.00013972,2]
[333406375,1722113444252,-992.82,0.00013972,2]
[333406377,1722113444261,-714.74,0.00013972,2]
[333406379,1722113444270,-930.26,0.00013972,2]
[333406381,1722113444280,-162.394351,0.00013972,2]
[333406383,1722113444289,-500.0,0.00013972,2]
[333406385,1722113444299,-500.0,0.00013972,2]
[333406387,1722113444308,-500.0,0.00013972,2]
[333406389,1722113444319,-151.0,0.00013972,2]
[333406391,1722113444329,-162.394351,0.00013972,2]
[333406393,1722113444338,-107.40144832,0.00013972,2]
[333406396,1722113444355,-581.07855168,0.00013972,2]
[333406398,1722113444365,-500.0,0.00013972,2]
[333406400,1722113444375,-151.0,0.00013972,2]
[333406402,1722113444384,-151.0,0.00013972,2]
[333406404,1722113444394,-631.51,0.00013972,2]
[333406406,1722113444406,-500.0,0.00013972,2]
[333406408,1722113444415,-500.0,0.00013972,2]
[333406410,1722113444424,-500.0,0.00013972,2]
[333406412,1722113444433,-500.0,0.00013972,2]
[333406414,1722113444442,-151.0,0.00013972,2]
[333406416,1722113444451,-740.72,0.00013972,2]
[333406418,1722113444461,-822.46,0.00013972,2]
[333406420,1722113444470,-151.0,0.00013972,2]
[333406422,1722113444480,-500.0,0.00013972,2]
[333406424,1722113444489,-316.4301282,0.00013972,2]
[333406426,1722113444502,-35.7870598,0.00013972,2]
[333406428,1722113444511,-1484.33161286,0.00013972,2]
[333406430,1722113444523,-470.49417695,0.00013972,2]
[333406451,1722113444714,-500.0,0.00013698,2]
[333406453,1722113444724,-422.94421019,0.00013972,2]
[333406455,1722113444733,-500.0,0.00013972,2]
[333406457,1722113444742,-500.0,0.00013972,2]
[333406459,1722113444752,-4143.87,0.00013972,2]
[333406461,1722113444761,-500.0,0.00013972,2]
[333406463,1722113444772,-352.217188,0.00013972,2]
[333406465,1722113444781,-571.08,0.00013972,2]
[333406467,1722113444791,-188.81152226,0.00013972,2]
[333406469,1722113444800,-500.0,0.00013972,2]
[333406470,1722113444810,-805.86,0.00013972,2]
[333406473,1722113444820,-500.0,0.00013972,2]
[333406475,1722113444830,-500.0,0.00013972,2]
[333406477,1722113444840,-151.0,0.00013972,2]
[333406479,1722113444850,-500.0,0.00013972,2]
[333406481,1722113444859,-500.0,0.00013972,2]
[333406483,1722113444869,-929.35,0.00013972,2]
[333406485,1722113444879,-500.0,0.00013972,2]
[333406487,1722113444889,-591.87564627,0.00013972,2]
[333406489,1722113444899,-1543.84,0.00013972,2]
[333406491,1722113444913,-799.55,0.00013972,2]
[333406492,1722113444923,-672.65,0.00013972,2]
[333406495,1722113444933,-500.0,0.00013972,2]
[333406497,1722113444943,-698.63,0.00013972,2]
[333406499,1722113444953,-151.0,0.00013972,2]
[333406501,1722113444964,-500.0,0.00013972,2]
[333406503,1722113444974,-799.89,0.00013972,2]
[333406505,1722113444983,-500.0,0.00013972,2]
[333406507,1722113444992,-956.0,0.00013972,2]
[333406509,1722113445001,-500.0,0.00013972,2]
[333406511,1722113445011,-642.31,0.00013972,2]
[333406513,1722113445020,-500.0,0.00013972,2]
[333406515,1722113445030,-500.0,0.00013972,2]
[333406516,1722113445039,-500.0,0.00013972,2]
[333406518,1722113445048,-500.0,0.00013972,2]
[333406520,1722113445057,-679.01,0.00013972,2]
[333406522,1722113445067,-500.0,0.00013972,2]
[333406524,1722113445076,-151.0,0.00013972,2]
[333406526,1722113445085,-500.0,0.00013972,2]
[333406528,1722113445095,-701.34,0.00013972,2]
[333406530,1722113445105,-151.0,0.00013972,2]
[333406532,1722113445115,-151.0,0.00013972,2]
[333406534,1722113445124,-151.0,0.00013972,2]
[333406536,1722113445133,-1128.76,0.00013972,2]
[333406538,1722113445143,-151.0,0.00013972,2]
[333406541,1722113445154,-151.0,0.00013972,2]
[333406543,1722113445169,-500.0,0.00013972,2]
[333406545,1722113445179,-500.0,0.00013972,2]
[333406547,1722113445189,-1425.28,0.00013972,2]
[333406549,1722113445199,-888.23,0.00013972,2]
[333406551,1722113445209,-803.82,0.00013972,2]
[333406553,1722113445219,-500.0,0.00013972,2]
[333406555,1722113445229,-535.9321805,0.00013972,2]
[333406557,1722113445241,-500.0,0.00013972,2]
[333406559,1722113445250,-151.0,0.00013972,2]
[333406561,1722113445260,-500.0,0.00013972,2]
[333406563,1722113445269,-500.0,0.00013972,2]
[333406565,1722113445280,-216.10425676,0.00014009,2]
[333406567,1722113445289,-13638.7290696,0.00014043,2]
[333406569,1722113445299,-1409.0,0.00014053,2]
[333406571,1722113445311,-216.10425676,0.00014146,2]
[333406573,1722113445320,-1883.66696268,0.00014146,2]
[333406575,1722113445330,-150.112233,0.000142,2]
[333406577,1722113445340,-500.0,0.00014235,2]
[333406579,1722113445351,-14240.9806506,0.00014236,5]
[333406581,1722113445361,-151.0,0.00014236,2]
[333406583,1722113445371,-151.0,0.00014236,2]
[333406585,1722113445381,-151.0,0.00014236,2]
[333406587,1722113445391,-27277.4581391,0.00014236,2]
[333406590,1722113445403,-500.0,0.00014245,2]
[333406592,1722113445420,-500.0,0.00014245,2]
[333406594,1722113445431,-500.0,0.00014246,2]
[333406596,1722113445441,-500.0,0.00014246,2]
[333406598,1722113445452,-732.89,0.00014246,2]
[333406600,1722113445462,-151.0,0.00014246,2]
[333406602,1722113445472,-151.0,0.00014246,2]
[333406604,1722113445481,-500.0,0.00014246,2]
[333406606,1722113445491,-151.0,0.00014246,2]
[333406608,1722113445501,-500.0,0.00014246,2]
[333406610,1722113445511,-151.0,0.00014246,2]
[333406612,1722113445521,-509.18,0.00014246,2]
[333406614,1722113445531,-543.65,0.00014246,2]
[333406616,1722113445540,-151.0,0.00014246,2]
[333406619,1722113445550,-579.8,0.00014246,2]
[333406621,1722113445560,-500.0,0.00014246,2]
[333406623,1722113445571,-500.0,0.00014246,2]
[333406625,1722113445580,-692.1,0.00014246,2]
[333406627,1722113445591,-151.0,0.00014246,2]
[333406629,1722113445601,-586.29,0.00014246,2]
[333406631,1722113445610,-463.53669668,0.00014246,2]
[333406633,1722113445620,-281.685129,0.00014246,2]
[333406635,1722113445630,-281.685129,0.00014246,2]
[333406637,1722113445641,-510.18,0.00014246,2]
[333406639,1722113445651,-151.0,0.00014246,2]
[333406642,1722113445667,-707.65,0.00014246,2]
[333406644,1722113445676,-151.0,0.00014246,2]
[333406646,1722113445686,-151.0,0.00014246,2]
[333406648,1722113445695,-514.15,0.00014246,2]
[333406650,1722113445705,-500.0,0.00014246,2]
[333406652,1722113445716,-707.86,0.00014246,2]
[333406654,1722113445726,-500.0,0.00014246,2]
[333406656,1722113445735,-151.0,0.00014246,2]
[333406658,1722113445745,-500.0,0.00014246,2]
[333406660,1722113445755,-151.0,0.00014246,2]
[333406663,1722113445766,-500.0,0.00014246,2]
[333406665,1722113445776,-500.0,0.00014246,2]
[333406667,1722113445787,-151.0,0.00014246,2]
[333406669,1722113445797,-151.0,0.00014246,2]
[333406671,1722113445808,-151.0,0.00014246,2]
[333406673,1722113445818,-151.0,0.00014246,2]
[333406675,1722113445829,-615.304679,0.00014246,2]
[333406677,1722113445839,-151.0,0.00014246,2]
[333406679,1722113445849,-151.0,0.00014246,2]
[333406682,1722113445859,-1703.18,0.00014246,2]
[333406684,1722113445869,-151.0,0.00014246,2]
[333406686,1722113445878,-151.0,0.00014246,2]
[333406688,1722113445888,-804.04,0.00014246,2]
[333406690,1722113445898,-151.0,0.00014246,2]
[333406692,1722113445909,-151.0,0.00014246,2]
[333406694,1722113445920,-651.46137,0.00014246,2]
[333406696,1722113445930,-3002.66,0.00014246,2]
[333406698,1722113445943,-651.46137,0.00014246,2]
[333406700,1722113445953,-151.0,0.00014246,2]
[333406702,1722113445963,-500.0,0.00014246,2]
[333406704,1722113445973,-500.0,0.00014246,2]
[333406707,1722113445983,-151.0,0.00014246,2]
[333406709,1722113445993,-1383.93,0.00014246,2]
[333406711,1722113446003,-794.51,0.00014246,2]
[333406713,1722113446013,-500.0,0.00014246,2]
[333406715,1722113446023,-151.0,0.00014246,2]
[333406717,1722113446032,-765.18,0.00014246,2]
[333406719,1722113446042,-500.0,0.00014246,2]
[333406721,1722113446052,-173.262477,0.00014246,2]
[333406723,1722113446061,-173.262477,0.00014246,2]
[333406725,1722113446071,-500.0,0.00014246,2]
[333406727,1722113446081,-168.701098,0.00014246,2]
[333406729,1722113446091,-733.89,0.00014246,2]
[333406731,1722113446100,-500.0,0.00014246,2]
[333406733,1722113446111,-168.701098,0.00014246,2]
[333406735,1722113446120,-5426.52,0.00014246,2]
[333406737,1722113446130,-500.0,0.00014246,2]
[333406739,1722113446139,-1510.48,0.00014246,2]
[333406742,1722113446150,-2248.36,0.00014246,2]
[333406744,1722113446163,-539.9,0.00014246,2]
[333406746,1722113446173,-1239.18,0.00014246,2]
[333406748,1722113446183,-992.82,0.00014246,2]
[333406750,1722113446193,-714.74,0.00014246,2]
[333406752,1722113446203,-930.26,0.00014246,2]
[333406754,1722113446213,-162.394351,0.00014246,2]
[333406756,1722113446223,-500.0,0.00014246,2]
[333406758,1722113446233,-500.0,0.00014246,2]
[333406760,1722113446243,-151.0,0.00014246,2]
[333406762,1722113446255,-162.394351,0.00014246,2]
[333406764,1722113446265,-688.48,0.00014246,2]
[333406766,1722113446275,-151.0,0.00014246,2]
[333406768,1722113446285,-151.0,0.00014246,2]
[333406770,1722113446298,-631.51,0.00014246,2]
[333406772,1722113446307,-500.0,0.00014246,2]
[333406774,1722113446317,-500.0,0.00014246,2]
[333406776,1722113446327,-500.0,0.00014246,2]
[333406778,1722113446336,-500.0,0.00014246,2]
[333406780,1722113446346,-151.0,0.00014246,2]
[333406782,1722113446356,-740.72,0.00014246,2]
[333406784,1722113446366,-822.46,0.00014246,2]
[333406786,1722113446375,-151.0,0.00014246,2]
[333406789,1722113446385,-500.0,0.00014246,2]
[333406791,1722113446394,-352.217188,0.00014246,2]
[333406793,1722113446404,-2377.77,0.00014246,2]
[333406795,1722113446419,-500.0,0.00014246,2]
[333406797,1722113446430,-500.0,0.00014246,2]
[333406799,1722113446440,-4143.87,0.00014246,2]
[333406801,1722113446450,-352.217188,0.00014246,2]
[333406803,1722113446459,-571.08,0.00014246,2]
[333406805,1722113446469,-805.86,0.00014246,2]
[333406807,1722113446479,-500.0,0.00014246,2]
[333406809,1722113446489,-151.0,0.00014246,2]
[333406811,1722113446499,-929.35,0.00014246,2]
[333406813,1722113446508,-1543.84,0.00014246,2]
[333406815,1722113446518,-799.55,0.00014246,2]
[333406817,1722113446527,-672.65,0.00014246,2]
[333406819,1722113446536,-500.0,0.00014246,2]
[333406821,1722113446546,-698.63,0.00014246,2]
[333406823,1722113446555,-151.0,0.00014246,2]
[333406825,1722113446565,-799.89,0.00014246,2]
[333406827,1722113446574,-956.0,0.00014246,2]
[333406829,1722113446584,-500.0,0.00014246,2]
[333406831,1722113446593,-642.31,0.00014246,2]
[333406833,1722113446603,-500.0,0.00014246,2]
[333406836,1722113446613,-500.0,0.00014246,2]
[333406838,1722113446623,-565.7,0.00014246,2]
[333406840,1722113446633,-679.01,0.00014246,2]
[333406842,1722113446643,-500.0,0.00014246,2]
[333406844,1722113446653,-701.34,0.00014246,2]
[333406846,1722113446668,-151.0,0.00014246,2]
[333406848,1722113446678,-1128.76,0.00014246,2]
[333406851,1722113446688,-1425.28,0.00014246,2]
[333406853,1722113446698,-888.23,0.00014246,2]
[333406855,1722113446708,-803.82,0.00014246,2]
[333406857,1722113446718,-750.0,0.00014247,2]
[333406859,1722113446730,-621.84898031,0.00014379,2]
[333406861,1722113446739,-13638.7290696,0.000145,2]
[333406863,1722113446749,-151.0,0.0001451,2]
[333406865,1722113446759,-151.0,0.0001451,2]
[333406867,1722113446768,-151.0,0.0001451,2]
[333406869,1722113446780,-151.0,0.0001451,2]
[333406871,1722113446790,-615.304679,0.0001451,2]
[333406873,1722113446800,-151.0,0.0001451,2]
[333406875,1722113446809,-151.0,0.0001451,2]
[333406877,1722113446819,-151.0,0.0001451,2]
[333406879,1722113446829,-151.0,0.0001451,2]
[333406881,1722113446839,-151.0,0.0001451,2]
[333406883,1722113446849,-151.0,0.0001451,2]
[333406885,1722113446858,-651.46137,0.0001451,2]
[333406888,1722113446868,-651.46137,0.0001451,2]
[333406890,1722113446879,-151.0,0.0001451,2]
[333406892,1722113446889,-151.0,0.0001451,2]
[333406894,1722113446899,-151.0,0.0001451,2]
[333406896,1722113446913,-173.262477,0.0001451,2]
[333406898,1722113446923,-173.262477,0.0001451,2]
[333406900,1722113446933,-168.701098,0.0001451,2]
[333406902,1722113446943,-168.701098,0.0001451,2]
[333406904,1722113446955,-13638.7290696,0.0001451,2]
[333406906,1722113446965,-151.0,0.0001451,2]
[333406908,1722113446975,-151.0,0.0001451,2]
[333406910,1722113446985,-151.0,0.0001451,2]
[333406912,1722113446995,-151.0,0.0001451,2]
[333406916,1722113447006,-216.410712,0.0001451,2]
[333406917,1722113447016,-500.0,0.0001452,2]
[333406918,1722113447026,-500.0,0.0001452,2]
[333406919,1722113447037,-732.89,0.0001452,2]
[333406920,1722113447049,-500.0,0.0001452,2]
[333406921,1722113447060,-151.0,0.0001452,2]
[333406922,1722113447070,-500.0,0.0001452,2]
[333406923,1722113447080,-171.561649,0.0001452,2]
[333406924,1722113447090,-509.18,0.0001452,2]
[333406925,1722113447100,-543.65,0.0001452,2]
[333406926,1722113447111,-151.0,0.0001452,2]
[333406927,1722113447122,-579.8,0.0001452,2]
[333406928,1722113447132,-500.0,0.0001452,2]
[333406929,1722113447142,-500.0,0.0001452,2]
[333406930,1722113447154,-692.1,0.0001452,2]
[333406931,1722113447170,-151.0,0.0001452,2]
[333406932,1722113447180,-586.29,0.0001452,2]
[333406933,1722113447190,-281.685129,0.0001452,2]
[333406935,1722113447200,-281.685129,0.0001452,2]
[333406937,1722113447209,-510.18,0.0001452,2]
[333406939,1722113447220,-707.65,0.0001452,2]
[333406941,1722113447230,-151.0,0.0001452,2]
[333406943,1722113447240,-500.0,0.0001452,2]
[333406945,1722113447255,-707.86,0.0001452,2]
[333406947,1722113447264,-500.0,0.0001452,2]
[333406949,1722113447274,-500.0,0.0001452,2]
[333406951,1722113447284,-500.0,0.0001452,2]
[333406953,1722113447295,-500.0,0.0001452,2]
[333406955,1722113447305,-1703.18,0.0001452,2]
[333406958,1722113447315,-804.04,0.0001452,2]
[333406960,1722113447326,-3002.66,0.0001452,2]
[333406962,1722113447336,-500.0,0.0001452,2]
[333406964,1722113447346,-500.0,0.0001452,2]
[333406966,1722113447356,-1383.93,0.0001452,2]
[333406968,1722113447366,-794.51,0.0001452,2]
[333406970,1722113447375,-500.0,0.0001452,2]
[333406972,1722113447385,-765.18,0.0001452,2]
[333406974,1722113447395,-500.0,0.0001452,2]
[333406976,1722113447405,-500.0,0.0001452,2]
[333406978,1722113447418,-733.89,0.0001452,2]
[333406980,1722113447429,-500.0,0.0001452,2]
[333406982,1722113447440,-5426.52,0.0001452,2]
[333406984,1722113447451,-500.0,0.0001452,2]
[333406987,1722113447462,-1510.48,0.0001452,2]
[333406989,1722113447473,-2248.36,0.0001452,2]
[333406991,1722113447483,-539.9,0.0001452,2]
[333407004,1722113447595,-1239.18,0.0001452,2]
[333407006,1722113447618,-992.82,0.0001452,2]
[333407009,1722113447629,-714.74,0.0001452,2]
[333407011,1722113447638,-930.26,0.0001452,2]
[333407013,1722113447648,-162.394351,0.0001452,2]
[333407014,1722113447657,-500.0,0.0001452,2]
[333407016,1722113447670,-500.0,0.0001452,2]
[333407019,1722113447680,-151.0,0.0001452,2]
[333407021,1722113447690,-162.394351,0.0001452,2]
[333407023,1722113447701,-688.48,0.0001452,2]
[333407025,1722113447711,-293.215157,0.0001452,2]
[333407027,1722113447723,-151.0,0.0001452,2]
[333407029,1722113447733,-631.51,0.0001452,2]
[333407031,1722113447742,-633.27686879,0.0001452,2]
[333407033,1722113447752,-500.0,0.0001452,2]
[333407035,1722113447761,-500.0,0.0001452,2]
[333407037,1722113447772,-500.0,0.0001452,2]
[333407038,1722113447782,-151.0,0.0001452,2]
[333407040,1722113447791,-740.72,0.0001452,2]
[333407042,1722113447801,-822.46,0.0001452,2]
[333407044,1722113447811,-151.0,0.0001452,2]
[333407046,1722113447820,-500.0,0.0001452,2]
[333407048,1722113447830,-352.217188,0.0001452,2]
[333407049,1722113447839,-2377.77,0.0001452,2]
[333407050,1722113447849,-500.0,0.0001452,2]
[333407051,1722113447860,-500.0,0.0001452,2]
[333407052,1722113447870,-4143.87,0.0001452,2]
[333407053,1722113447879,-352.217188,0.0001452,2]
[333407054,1722113447889,-571.08,0.0001452,2]
[333407055,1722113447898,-805.86,0.0001452,2]
[333407056,1722113447913,-500.0,0.0001452,2]
[333407057,1722113447923,-929.35,0.0001452,2]
[333407058,1722113447933,-1543.84,0.0001452,2]
[333407059,1722113447942,-799.55,0.0001452,2]
[333407060,1722113447952,-672.65,0.0001452,2]
[333407061,1722113447961,-500.0,0.0001452,2]
[333407062,1722113447971,-698.63,0.0001452,2]
[333407063,1722113447981,-799.89,0.0001452,2]
[333407064,1722113447991,-956.0,0.0001452,2]
[333407065,1722113448000,-500.0,0.0001452,2]
[333407066,1722113448010,-642.31,0.0001452,2]
[333407067,1722113448020,-500.0,0.0001452,2]
[333407068,1722113448030,-500.0,0.0001452,2]
[333407069,1722113448039,-679.01,0.0001452,2]
[333407070,1722113448050,-500.0,0.0001452,2]
[333407071,1722113448059,-701.34,0.0001452,2]
[333407072,1722113448069,-1128.76,0.0001452,2]
[333407073,1722113448080,-1425.28,0.0001452,2]
[333407074,1722113448089,-888.23,0.0001452,2]
[333407075,1722113448099,-803.82,0.0001452,2]
[333407076,1722113448109,-151.0,0.00014605,2]
[333407077,1722113448119,-212.00422926,0.00014605,2]
[333407078,1722113448129,-5308.13158001,0.00014611,2]
[333407079,1722113448138,-307.0628481,0.00014646,2]
[333407080,1722113448148,-30000.0,0.0001469,2]
[333407081,1722113448160,-30000.0,0.0001469,2]
[333407082,1722113448170,-155.0,0.0001469,2]
[333407083,1722113448179,-151.0,0.0001469,2]
[333407084,1722113448189,-150.112233,0.000147,2]
[333407085,1722113448199,-13638.7290696,0.00014774,2]
[333407086,1722113448209,-13638.7290696,0.00014784,2]
[333407087,1722113448219,-151.0,0.00014784,2]
[333407088,1722113448229,-151.0,0.00014784,2]
[333407089,1722113448241,-151.0,0.00014784,2]
[333407090,1722113448255,-615.304679,0.00014784,2]
[333407091,1722113448266,-151.0,0.00014784,2]
[333407092,1722113448276,-615.304679,0.00014784,2]
[333407093,1722113448288,-151.0,0.00014784,2]
[333407094,1722113448298,-241.786727,0.00014784,2]
[333407095,1722113448308,-151.0,0.00014784,2]
[333407096,1722113448320,-151.0,0.00014784,2]
[333407097,1722113448331,-151.0,0.00014784,2]
[333407098,1722113448341,-151.0,0.00014784,2]
[333407099,1722113448351,-651.46137,0.00014784,2]
[333407100,1722113448361,-651.46137,0.00014784,2]
[333407101,1722113448372,-151.0,0.00014784,2]
[333407102,1722113448382,-173.262477,0.00014784,2]
[333407103,1722113448392,-173.262477,0.00014784,2]
[333407104,1722113448403,-168.701098,0.00014784,2]
[333407105,1722113448417,-168.701098,0.00014784,2]
[333407106,1722113448428,-151.0,0.00014784,2]
[333407107,1722113448438,-151.0,0.00014784,2]
[333407108,1722113448448,-151.0,0.00014784,2]
[333407109,1722113448460,-500.0,0.00014794,2]
[333407110,1722113448471,-500.0,0.00014794,2]
[333407112,1722113448480,-732.89,0.00014794,2]
[333407114,1722113448490,-151.0,0.00014794,2]